[Event "British KO-ch 2019"]
[Site "London"]
[Date "2019.12.03"]
[Round "2.2"]
[White "Howell, David W L"]
[Black "Jones, Gawain C B"]
[Result "1/2-1/2"]
[ECO "D75"]
[WhiteElo "2701"]
[BlackElo "2663"]
[Annotator "RC"]
[PlyCount "71"]
[EventDate "2019.11.30"]
[EventType "k.o."]
[EventCountry "ENG"]
[SourceTitle "playchess.com"]
[Source "ChessBase"]
[SourceQuality "1"]
[TimeControl "5400+30"]

1. Nf3 {[%emt 0:00:00]} Nf6 {[%emt 0:00:00]} 2. c4 {[%emt 0:00:00]} g6 {[%emt 0:00:00]} 3. g3 {[%emt 0:00:00]} Bg7 {[%emt 0:00:00]} 4. Bg2 {[%emt 0:00:00]} O-O {[%emt 0:00:00]} 5. O-O {[%emt 0:00:00]} c5 {[%emt 0:00:00]} 6. d4 {[%emt 0:00:00]} cxd4 {[%emt 0:00:00]} 7. Nxd4 {[%emt 0:00:00]} d5 {[%emt 0:00:00]} 8. cxd5 {[%emt 0:00:00]} Nxd5 {[%emt 0:00:00]} 9. Nb5 {[%emt 0:00:00]} Be6 {[%emt 0:00:00]} 10. Nd4 {[%emt 0:00:00]} Bc8 {[%emt 0:00:00]} 11. Nc3 {[%emt 0:00:00]} Nxc3 {[%emt 0:00:00]} 12. bxc3 {[%emt 0:00:00]} Nc6 {[%emt 0:00:00]} 13. Rb1 {[%emt 0:06:51]} Nxd4 {[%emt 0:00:00]} 14. cxd4 {[%emt 0:00:14]} Qxd4 {[%emt 0:00:00]} 15. Qxd4 {[%emt 0:13:58]} Bxd4 {[%emt 0:00:00]} 16. Bh6 {[%emt 0:00:09]} Rd8 {[%emt 0:00:00]} 17. Bxb7 {[%emt 0:00:21]} Rb8 {[%emt 0:00:00]} 18. Bxc8 {[%emt 0:00:59]} Rdxc8 {[%emt 0:00:00]} 19. Rxb8 {[%emt 0:04:28]} Rxb8 {[%emt 0:00:00]} 20. Rd1 {[%emt 0:00:04]} Bc5 {[%emt 0:00:00]} 21. Rd7 {[%emt 0:10:45]} Rc8 {[%emt 0:00:00]} 22. a4 {[%emt 0:10:54]} a6 {[%emt 0:00:00]} 23. Kg2 {[%emt 0:17:42]} f6 {[%emt 0:00:00]} 24. Bd2 {[%emt 0:00:07]} Kf7 {[%emt 0:00:00]} 25. Kf3 {[%emt 0:00:48]} Ke6 {[%emt 0:03:50]} 26. Rb7 {[%emt 0:09:03]} Kd5 {[%emt 0:07:16]} 27. e4+ {[%emt 0:01:12]} Kc6 {[%emt 0:00:41]} 28. Rb1 {[%emt 0:10:01]} Kd7 {[%emt 0:06:29]} 29. Ke2 {[%emt 0:05:06]} Rc6 {[%emt 0:04:48]} 30. f3 {[%emt 0:02:43]} Rb6 {[%emt 0:01:14]} 31. Rxb6 {[%emt 0:00:10]} Bxb6 {[%emt 0:00:03]} 32. Kd3 {[%emt 0:00:21]} Kc6 {[%emt 0:02:24]} 33. Kc4 {[%emt 0:00:30]} e6 {[%emt 0:05:23]} 34. g4 {[%emt 0:00:26]} f5 {[%emt 0:00:14]} 35. h3 {[%emt 0:00:25]} fxe4 {[%emt 0:03:59]} 36. fxe4 {[%emt 0:00:17]} 1/2-1/2

[Event "British KO-ch 2019"]
[Site "London"]
[Date "2019.12.04"]
[Round "2.7"]
[White "Howell, David W L"]
[Black "Jones, Gawain C B"]
[Result "1/2-1/2"]
[ECO "E63"]
[WhiteElo "2701"]
[BlackElo "2663"]
[Annotator "ChessBase"]
[PlyCount "101"]
[EventDate "2019.11.30"]
[EventType "k.o."]
[EventCountry "ENG"]
[SourceTitle "playchess.com"]
[Source "ChessBase"]
[SourceQuality "1"]
[TimeControl "300+3"]

1. Nf3 {[%emt 0:00:02]} Nf6 {[%emt 0:00:00]} 2. g3 {[%emt 0:00:01]} g6 {[%emt 0:00:00]} 3. Bg2 {[%emt 0:00:01]} Bg7 {[%emt 0:00:01]} 4. c4 {[%emt 0:00:01]} O-O {[%emt 0:00:06]} 5. O-O {[%emt 0:00:02]} d6 {[%emt 0:00:03]} 6. d4 {[%emt 0:00:01]} Nc6 {[%emt 0:00:01]} 7. Nc3 {[%emt 0:00:01]} a6 {[%emt 0:00:01]} 8. b3 {[%emt 0:00:01]} Rb8 {[%emt 0:00:02]} 9. d5 {[%emt 0:00:01]} Na5 {[%emt 0:00:01]} 10. Bg5 {[%emt 0:00:01]} b5 {[%emt 0:00:05]} 11. cxb5 {[%emt 0:00:10]} axb5 {[%emt 0:00:01]} 12. b4 {[%emt 0:00:02]} c5 {[%emt 0:00:01]} 13. dxc6 {[%emt 0:00:59]} Nxc6 {[%emt 0:00:02]} 14. a3 {[%emt 0:00:00]} h6 {[%emt 0:00:22]} 15. Bd2 {[%emt 0:00:03]} Bd7 {[%emt 0:00:38]} 16. Rc1 {[%emt 0:00:25]} Ng4 {[%emt 0:00:05]} 17. Nd5 {[%emt 0:00:26]} Nce5 {[%emt 0:00:16]} 18. Nxe5 {[%emt 0:00:21]} Nxe5 {[%emt 0:00:01]} 19. Bc3 {[%emt 0:00:26]} e6 {[%emt 0:00:02]} 20. Ne3 {[%emt 0:00:01]} d5 {[%emt 0:00:09]} 21. Qb3 {[%emt 0:00:21]} Ra8 {[%emt 0:00:33]} 22. Rfd1 {[%emt 0:00:08]} Nc4 {[%emt 0:00:14]} 23. Nxc4 {[%emt 0:00:43]} bxc4 {[%emt 0:00:01]} 24. Qb2 {[%emt 0:00:01]} Bxc3 {[%emt 0:00:03]} 25. Qxc3 {[%emt 0:00:02]} f5 {[%emt 0:00:12]} 26. f3 {[%emt 0:00:12]} Qb6+ {[%emt 0:00:44]} 27. Kh1 {[%emt 0:00:02]} Ba4 {[%emt 0:00:06]} 28. Rd2 {[%emt 0:00:13]} Bb3 {[%emt 0:00:13]} 29. e4 {[%emt 0:00:08]} Rad8 {[%emt 0:00:39]} 30. exd5 {[%emt 0:00:04]} exd5 {[%emt 0:00:01]} 31. Rd4 {[%emt 0:00:11]} f4 {[%emt 0:00:04]} 32. gxf4 {[%emt 0:00:32]} Qf6 {[%emt 0:00:04]} 33. Rg1 {[%emt 0:00:22]} Kh7 {[%emt 0:00:11]} 34. Bh3 {[%emt 0:00:19]} Qh4 {[%emt 0:00:09]} 35. Be6 {[%emt 0:00:05]} Rxf4 {[%emt 0:00:13]} 36. Rxd5 {[%emt 0:00:04]} Rxd5 {[%emt 0:00:12]} 37. Bxd5 {[%emt 0:00:00]} Rf5 {[%emt 0:00:22]} 38. Be4 {[%emt 0:00:05]} Rg5 {[%emt 0:00:02]} 39. Rxg5 {[%emt 0:00:14]} Qxg5 {[%emt 0:00:05]} 40. Qd4 {[%emt 0:00:04]} Qc1+ {[%emt 0:00:06]} 41. Kg2 {[%emt 0:00:01]} c3 {[%emt 0:00:29]} 42. Qd7+ {[%emt 0:00:01]} Kg8 {[%emt 0:00:01]} 43. Qe8+ {[%emt 0:00:07]} Kg7 {[%emt 0:00:01]} 44. Qxg6+ {[%emt 0:00:03]} Kf8 {[%emt 0:00:00]} 45. Qd6+ {[%emt 0:00:01]} Kg8 {[%emt 0:00:03]} 46. Qd8+ {[%emt 0:00:03]} Kf7 {[%emt 0:00:06]} 47. Qd7+ {[%emt 0:00:03]} Kf8 {[%emt 0:00:01]} 48. Qd6+ {[%emt 0:00:01]} Kf7 {[%emt 0:00:02]} 49. Qd7+ {[%emt 0:00:05]} Kf8 {[%emt 0:00:01]} 50. Qd8+ {[%emt 0:00:04]} Kf7 {[%emt 0:00:01]} 51. Qd7+ {[%emt 0:00:02]} 1/2-1/2

[Event "British KO-ch 2019"]
[Site "London"]
[Date "2019.12.04"]
[Round "2.7"]
[White "McShane, Luke J"]
[Black "Adams, Michael"]
[Result "1-0"]
[ECO "C68"]
[WhiteElo "2675"]
[BlackElo "2692"]
[Annotator "ChessBase"]
[PlyCount "89"]
[EventDate "2019.11.30"]
[EventType "k.o."]
[EventCountry "ENG"]
[SourceTitle "playchess.com"]
[Source "ChessBase"]
[SourceQuality "1"]
[TimeControl "300+3"]

1. e4 {[%emt 0:00:00]} e5 {[%emt 0:00:00]} 2. Nf3 {[%emt 0:00:00]} Nc6 {[%emt 0:00:00]} 3. Bb5 {[%emt 0:00:01]} a6 {[%emt 0:00:00]} 4. Bxc6 {[%emt 0:00:00]} dxc6 {[%emt 0:00:01]} 5. O-O {[%emt 0:00:02]} Qf6 {[%emt 0:00:00]} 6. d3 {[%emt 0:00:01]} Bd6 {[%emt 0:00:05]} 7. Nbd2 {[%emt 0:00:07]} c5 {[%emt 0:00:06]} 8. Qe1 {[%emt 0:00:17]} Ne7 {[%emt 0:00:03]} 9. Nc4 {[%emt 0:00:01]} Nc6 {[%emt 0:00:11]} 10. a4 {[%emt 0:00:15]} O-O {[%emt 0:00:04]} 11. a5 {[%emt 0:00:35]} Bg4 {[%emt 0:00:02]} 12. Nfd2 {[%emt 0:00:05]} Nd4 {[%emt 0:00:06]} 13. f3 {[%emt 0:00:01]} Be6 {[%emt 0:00:30]} 14. Ne3 {[%emt 0:00:01]} b5 {[%emt 0:00:07]} 15. axb6 {[%emt 0:00:15]} cxb6 {[%emt 0:00:01]} 16. c3 {[%emt 0:00:07]} Nc6 {[%emt 0:00:16]} 17. Nd5 {[%emt 0:00:08]} Qd8 {[%emt 0:00:05]} 18. c4 {[%emt 0:00:09]} Nb4 {[%emt 0:00:12]} 19. Qe2 {[%emt 0:00:15]} Nc2 {[%emt 0:00:08]} 20. Ra2 {[%emt 0:00:08]} Nd4 {[%emt 0:00:04]} 21. Qd1 {[%emt 0:00:03]} f5 {[%emt 0:00:28]} 22. Nb1 {[%emt 0:00:33]} b5 {[%emt 0:00:13]} 23. Nbc3 {[%emt 0:00:06]} b4 {[%emt 0:00:27]} 24. Ne2 {[%emt 0:00:02]} Nxe2+ {[%emt 0:00:22]} 25. Qxe2 {[%emt 0:00:01]} a5 {[%emt 0:00:05]} 26. b3 {[%emt 0:00:18]} Bd7 {[%emt 0:00:20]} 27. exf5 {[%emt 0:00:35]} Bxf5 {[%emt 0:00:07]} 28. Bb2 {[%emt 0:00:02]} a4 {[%emt 0:00:30]} 29. Rxa4 {[%emt 0:00:15]} Rxa4 {[%emt 0:00:01]} 30. bxa4 {[%emt 0:00:01]} Re8 {[%emt 0:00:02]} 31. Ra1 {[%emt 0:00:10]} Qa5 {[%emt 0:00:13]} 32. f4 {[%emt 0:00:12]} e4 {[%emt 0:00:27]} 33. Qh5 {[%emt 0:00:21]} Rf8 34. dxe4 {[%emt 0:00:24]} Bxe4 {[%emt 0:00:02]} 35. Qg4 {[%emt 0:00:08]} Rf7 {[%emt 0:00:42]} 36. Nf6+ {[%emt 0:00:01]} Rxf6 {[%emt 0:00:01]} 37. Bxf6 {[%emt 0:00:01]} Qc7 {[%emt 0:00:01]} 38. Qe6+ {[%emt 0:00:18]} Qf7 {[%emt 0:00:01]} 39. Qxe4 {[%emt 0:00:16]} Qxf6 {[%emt 0:00:02]} 40. Rd1 {[%emt 0:00:02]} Be7 {[%emt 0:00:13]} 41. a5 {[%emt 0:00:06]} Kf7 {[%emt 0:00:06]} 42. Qd5+ {[%emt 0:00:06]} Kg6 {[%emt 0:00:06]} 43. Re1 {[%emt 0:00:09]} Qf8 {[%emt 0:00:09]} 44. a6 {[%emt 0:00:05]} Bf6 {[%emt 0:00:04]} 45. a7 {[%emt 0:00:03]} 1-0

[Event "British KO-ch 2019"]
[Site "London"]
[Date "2019.12.04"]
[Round "2.8"]
[White "Jones, Gawain C B"]
[Black "Howell, David W L"]
[Result "1/2-1/2"]
[ECO "B11"]
[WhiteElo "2663"]
[BlackElo "2701"]
[Annotator "RC"]
[PlyCount "159"]
[EventDate "2019.11.30"]
[EventType "k.o."]
[EventCountry "ENG"]
[SourceTitle "playchess.com"]
[Source "ChessBase"]
[SourceQuality "1"]
[TimeControl "300+3"]

1. e4 {[%emt 0:00:00]} c6 {[%emt 0:00:00]} 2. Nf3 {[%emt 0:00:01]} d5 {[%emt 0:00:00]} 3. Nc3 {[%emt 0:00:01]} dxe4 {[%emt 0:00:00]} 4. Nxe4 {[%emt 0:00:01]} Nf6 {[%emt 0:00:01]} 5. Qe2 {[%emt 0:00:01]} Nxe4 {[%emt 0:00:06]} 6. Qxe4 {[%emt 0:00:01]} Qa5 {[%emt 0:00:01]} 7. b4 {[%emt 0:00:02]} Qf5 {[%emt 0:00:01]} 8. Qe3 {[%emt 0:00:01]} Qe6 {[%emt 0:00:01]} 9. Be2 {[%emt 0:00:12]} Qxe3 {[%emt 0:00:10]} 10. fxe3 {[%emt 0:00:01]} f6 {[%emt 0:00:00]} 11. a3 {[%emt 0:00:03]} e5 {[%emt 0:00:31]} 12. d4 {[%emt 0:00:10]} exd4 13. exd4 {[%emt 0:00:02]} Be6 {[%emt 0:00:29]} 14. Bf4 {[%emt 0:00:18]} Nd7 {[%emt 0:00:10]} 15. O-O {[%emt 0:00:07]} Nb6 {[%emt 0:00:13]} 16. Bd3 {[%emt 0:00:46]} Bc4 {[%emt 0:00:31]} 17. Rae1+ {[%emt 0:00:27]} Kf7 {[%emt 0:00:13]} 18. Bc1 {[%emt 0:00:32]} Bxd3 {[%emt 0:00:38]} 19. Ne5+ {[%emt 0:00:01]} Kg8 {[%emt 0:00:01]} 20. Nxd3 {[%emt 0:00:01]} Nc4 {[%emt 0:00:01]} 21. Re4 {[%emt 0:00:10]} Bd6 {[%emt 0:00:17]} 22. c3 {[%emt 0:00:52]} Kf7 {[%emt 0:00:30]} 23. Ne5+ {[%emt 0:00:26]} Nxe5 {[%emt 0:00:24]} 24. dxe5 {[%emt 0:00:01]} Rhe8 {[%emt 0:00:02]} 25. Bf4 {[%emt 0:00:02]} Re6 {[%emt 0:00:54]} 26. Rd4 {[%emt 0:00:06]} Bxe5 {[%emt 0:00:04]} 27. Bxe5 {[%emt 0:00:38]} Rxe5 {[%emt 0:00:01]} 28. Rd7+ {[%emt 0:00:01]} Re7 {[%emt 0:00:01]} 29. Rfd1 {[%emt 0:00:02]} Rae8 {[%emt 0:00:01]} 30. Kf2 {[%emt 0:00:01]} Rxd7 {[%emt 0:00:03]} 31. Rxd7+ {[%emt 0:00:01]} Re7 {[%emt 0:00:01]} 32. Rd8 {[%emt 0:00:01]} a6 {[%emt 0:00:05]} 33. a4 {[%emt 0:00:04]} h5 {[%emt 0:00:03]} 34. Kf3 {[%emt 0:00:04]} Kg6 {[%emt 0:00:08]} 35. Kf4 {[%emt 0:00:07]} Kf7 {[%emt 0:00:04]} 36. h4 {[%emt 0:00:03]} Kg6 {[%emt 0:00:01]} 37. a5 {[%emt 0:00:03]} Kf7 {[%emt 0:00:01]} 38. Rb8 {[%emt 0:00:07]} Kg6 {[%emt 0:00:04]} 39. Rh8 {[%emt 0:00:01]} Re2 {[%emt 0:00:08]} 40. Rb8 {[%emt 0:00:03]} Re7 {[%emt 0:00:01]} 41. Ra8 {[%emt 0:00:08]} Kf7 {[%emt 0:00:01]} 42. g3 {[%emt 0:00:05]} Kg6 {[%emt 0:00:01]} 43. c4 {[%emt 0:00:04]} Kf7 {[%emt 0:00:03]} 44. Ra7 {[%emt 0:00:02]} Kf8 {[%emt 0:00:28]} 45. Kf5 {[%emt 0:00:01]} Kf7 {[%emt 0:00:01]} 46. Ra8 {[%emt 0:00:06]} Re5+ {[%emt 0:00:02]} 47. Kf4 {[%emt 0:00:01]} Re7 {[%emt 0:00:01]} 48. Rh8 {[%emt 0:00:08]} Kg6 {[%emt 0:00:01]} 49. Rf8 {[%emt 0:00:02]} Re1 {[%emt 0:00:06]} 50. Rb8 {[%emt 0:00:09]} Re7 {[%emt 0:00:01]} 51. Rd8 {[%emt 0:00:07]} Kf7 {[%emt 0:00:02]} 52. Rc8 {[%emt 0:00:15]} Kg6 {[%emt 0:00:04]} 53. Rh8 {[%emt 0:00:02]} Re1 {[%emt 0:00:02]} 54. Rb8 {[%emt 0:00:04]} Rc1 {[%emt 0:00:14]} 55. Rxb7 {[%emt 0:00:09]} Rxc4+ {[%emt 0:00:02]} 56. Ke3 {[%emt 0:00:01]} c5 {[%emt 0:00:08]} 57. b5 {[%emt 0:00:02]} axb5 {[%emt 0:00:09]} 58. Rxb5 {[%emt 0:00:01]} Kf5 {[%emt 0:00:07]} 59. Kd3 {[%emt 0:00:05]} Rc1 {[%emt 0:00:00]} 60. Kd2 {[%emt 0:00:06]} Ra1 {[%emt 0:00:11]} 61. Kc2 {[%emt 0:00:07]} Kg4 {[%emt 0:00:05]} 62. Kb2 {[%emt 0:00:06]} Ra4 {[%emt 0:00:01]} 63. Kb3 {[%emt 0:00:01]} Ra1 {[%emt 0:00:01]} 64. Kb2 {[%emt 0:00:12]} Ra4 {[%emt 0:00:01]} 65. Rxc5 {[%emt 0:00:05]} Kxg3 {[%emt 0:00:02]} 66. Kb3 {[%emt 0:00:04]} Ra1 {[%emt 0:00:01]} 67. Rxh5 {[%emt 0:00:06]} g6 {[%emt 0:00:10]} 68. Rc5 {[%emt 0:00:03]} f5 {[%emt 0:00:06]} 69. Kb2 {[%emt 0:00:06]} Ra4 {[%emt 0:00:02]} 70. Kb3 {[%emt 0:00:10]} Ra1 {[%emt 0:00:00]} 71. h5 {[%emt 0:00:09]} gxh5 {[%emt 0:00:01]} 72. Kb2 {[%emt 0:00:00]} Ra4 {[%emt 0:00:03]} 73. Kb3 {[%emt 0:00:02]} Ra1 {[%emt 0:00:01]} 74. Rxf5 {[%emt 0:00:05]} h4 {[%emt 0:00:01]} 75. Kb2 {[%emt 0:00:01]} Ra4 {[%emt 0:00:01]} 76. Kb3 {[%emt 0:00:01]} Ra1 {[%emt 0:00:01]} 77. Rg5+ {[%emt 0:00:03]} Kf4 {[%emt 0:00:02]} 78. Rh5 {[%emt 0:00:01]} Kg4 {[%emt 0:00:01]} 79. Rc5 {[%emt 0:00:10]} h3 {[%emt 0:00:02]} 80. Rc4+ {[%emt 0:00:03]} 1/2-1/2